bitfinex/quotes_SOLUSD_20250822
["timestamp","ask_amount","ask_price","bid_price","bid_amount"]
[1755867027425,13.59559401,179.44,179.38,0.1]
[1755867027587,12.29939633,179.41,179.38,0.1]
[1755867027908,12.29939633,179.4,179.38,0.1]
[1755867028684,12.29939633,179.41,179.38,0.1]
[1755867029411,13.59559401,179.44,179.38,0.1]
[1755867029580,12.29939633,179.41,179.38,0.1]
[1755867029786,0.66,179.47,179.39,0.69]
[1755867030006,13.62559401,179.49,179.43,12.29939633]
[1755867030315,0.03,179.47,179.43,12.29939633]
[1755867030490,0.03,179.47,179.43,12.98939633]
[1755867030690,0.03,179.47,179.44,12.29939633]
[1755867030891,0.03,179.47,179.46,12.29939633]
[1755867031113,0.03,179.47,179.46,17.8716687]
[1755867031421,0.03,179.47,179.46,6.26227237]
[1755867031584,0.03,179.47,179.46,18.5616687]
[1755867032032,0.03,179.47,179.46,44.5616687]
[1755867032511,0.03,179.47,179.46,46.7953697]
[1755867033824,0.03,179.47,179.46,34.49597337]
[1755867034032,0.03,179.47,179.46,46.7953697]
[1755867035110,0.03,179.47,179.46,34.49597337]
[1755867035311,0.03,179.47,179.46,46.7953697]
[1755867035611,0.03,179.47,179.46,34.49597337]
[1755867035912,0.03,179.47,179.46,46.7953697]
[1755867036689,0.03,179.47,179.46,34.49597337]
[1755867036934,0.03,179.47,179.46,46.7953697]
[1755867038086,12.54939633,179.55,179.46,20.7953697]
[1755867038325,12.54939633,179.55,179.5,12.29939633]
[1755867038623,12.29939633,179.55,179.5,58.89939633]
[1755867038828,12.29939633,179.55,179.5,46.6]
[1755867039000,12.29939633,179.53,179.5,46.6]
[1755867039209,12.29939633,179.53,179.49,46.56]
[1755867039394,13.59559401,179.55,179.49,46.56]
[1755867039722,12.29939633,179.51,179.44,16.753693]
[1755867040022,12.29939633,179.51,179.47,26.0]
[1755867040195,0.66,179.5,179.45,52.13258289]
[1755867040399,12.29939633,179.47,179.43,5.57314125]
[1755867040703,12.29939633,179.47,179.43,17.87253758]
[1755867040906,0.66,179.46,179.42,12.35939633]
[1755867041214,0.66,179.46,179.42,17.9328482]
[1755867041589,12.29939633,179.48,179.43,12.29939633]
[1755867041921,0.66,179.47,179.42,0.06]
[1755867042093,12.29939633,179.48,179.43,12.98939633]
[1755867042293,12.95939633,179.48,179.43,18.56248338]
[1755867042496,12.29939633,179.47,179.43,17.87248338]
[1755867042802,12.95939633,179.47,179.43,17.87248338]
[1755867042995,133.06,179.52,179.46,12.29939633]
[1755867043198,132.4,179.52,179.49,12.29939633]
[1755867044418,12.95939633,179.54,179.49,6.2612433]
[1755867044606,0.66,179.54,179.5,12.29939633]
[1755867044802,0.03,179.55,179.51,12.29939633]
[1755867045008,0.69,179.55,179.51,12.29939633]
[1755867045397,12.95939633,179.54,179.49,17.87063963]
[1755867045598,0.66,179.53,179.49,17.87063963]
[1755867045930,12.32939633,179.55,179.49,5.5712433]
[1755867046096,12.98939633,179.55,179.5,12.29939633]
[1755867046298,0.03,179.55,179.51,17.87006439]
[1755867046524,0.66,179.54,179.51,5.57066806]
[1755867046821,0.66,179.54,179.5,17.8703777]
[1755867047022,0.66,179.53,179.5,12.29939633]
[1755867047230,13.00939633,179.52,179.47,12.29939633]
[1755867047410,13.00939633,179.51,179.48,46.48]
[1755867047608,13.00939633,179.5,179.46,26.0]
[1755867047800,13.00939633,179.5,179.46,72.48]
[1755867048000,0.71,179.49,179.46,46.48]
[1755867048526,12.29939633,179.51,179.46,59.48939633]
[1755867048731,13.00939633,179.51,179.47,12.29939633]
[1755867049303,13.00939633,179.51,179.46,52.762208]
[1755867049304,12.29939633,179.51,179.46,46.48]
[1755867049504,0.71,179.5,179.46,46.48]
[1755867049710,13.00939633,179.5,179.46,46.48]
[1755867049916,0.74,179.52,179.46,52.7622415]
[1755867050217,13.03939633,179.52,179.47,12.29939633]
[1755867050519,13.03939633,179.52,179.47,17.87135473]
[1755867050712,13.03939633,179.52,179.47,12.29939633]
[1755867050909,0.71,179.51,179.47,12.29939633]
[1755867051529,0.71,179.5,179.46,46.48]
[1755867051717,0.71,179.49,179.46,58.77939633]
[1755867051930,0.71,179.48,179.46,46.48]
[1755867052109,12.29939633,179.49,179.46,46.48]
[1755867052110,13.00939633,179.49,179.46,46.48]
[1755867052636,12.29939633,179.5,179.46,46.48]
[1755867052942,0.71,179.5,179.46,58.77939633]
[1755867053120,12.29939633,179.51,179.46,59.48939633]
[1755867053307,0.71,179.5,179.46,58.77939633]
[1755867053810,0.71,179.5,179.46,46.48]
[1755867054218,0.74,179.52,179.46,46.48]
[1755867054417,12.29939633,179.51,179.46,58.77939633]
[1755867054627,0.71,179.5,179.46,58.77939633]
[1755867056020,0.71,179.49,179.46,46.48]
[1755867056215,0.74,179.52,179.46,58.77939633]
[1755867056826,12.29939633,179.5,179.46,58.77939633]
[1755867057036,0.74,179.52,179.46,47.19]
[1755867057205,0.03,179.52,179.46,52.05227122]
[1755867057412,0.03,179.52,179.5,12.29939633]
[1755867057643,0.03,179.52,179.5,58.51939633]
[1755867057849,0.03,179.52,179.51,13.00939633]
[1755867058140,0.03,179.52,179.5,51.79082168]
[1755867058141,0.03,179.52,179.5,46.22]
[1755867058310,0.03,179.52,179.51,13.00939633]
[1755867059728,0.03,179.52,179.51,18.58011662]
[1755867060433,0.03,179.52,179.51,13.00939633]
[1755867060640,0.03,179.52,179.51,18.58011662]
[1755867063930,0.03,179.52,179.51,12.29939633]
[1755867064316,0.03,179.52,179.51,18.58011662]
[1755867064918,0.03,179.52,179.51,12.29939633]
[1755867065220,0.74,179.52,179.48,2.233452]
[1755867065443,0.74,179.52,179.49,46.06]
[1755867065643,0.03,179.52,179.49,46.06]
[1755867065949,12.29939633,179.5,179.47,46.06]
[1755867066129,12.29939633,179.48,179.47,46.06]
[1755867066441,13.59559401,179.51,179.46,0.06]
[1755867066648,12.29939633,179.49,179.46,0.06]
[1755867066947,12.29939633,179.47,179.46,0.06]
[1755867067446,13.00939633,179.47,179.46,0.06]
[1755867067922,26.60499034,179.47,179.46,0.06]
[1755867068120,14.30559401,179.47,179.46,0.06]
[1755867068323,26.60499034,179.47,179.46,0.06]
[1755867068647,14.30559401,179.47,179.46,0.06]
[1755867068848,26.60499034,179.47,179.46,0.06]
[1755867069833,14.30559401,179.47,179.46,0.06]
[1755867070026,26.60499034,179.47,179.46,0.06]
[1755867074326,26.88931348,179.47,179.46,0.06]
[1755867074540,32.46127536,179.47,179.46,0.06]
[1755867075331,13.87991715,179.46,179.44,0.06]
[1755867075542,71.79499034,179.45,179.44,0.06]
[1755867075741,72.50499034,179.45,179.44,0.06]
[1755867075935,72.78931348,179.45,179.44,0.06]
[1755867076435,26.88931348,179.45,179.44,0.06]
[1755867076847,78.36189637,179.45,179.44,0.06]
[1755867077044,72.78931348,179.45,179.44,0.06]
[1755867077253,78.36189637,179.45,179.44,0.06]
[1755867077650,32.46189637,179.45,179.44,0.06]
[1755867077956,78.36189637,179.45,179.44,0.06]
[1755867078252,32.46189637,179.45,179.44,0.06]
[1755867078452,78.36189637,179.45,179.44,0.06]
[1755867079647,78.38189637,179.45,179.44,0.06]
[1755867082734,39.87991715,179.43,179.42,0.06]
[1755867082935,52.17931348,179.43,179.42,0.06]
[1755867083140,98.78931348,179.43,179.42,0.06]
[1755867083841,103.25218196,179.43,179.42,0.06]
[1755867084561,39.87991715,179.41,179.4,0.06]
[1755867084763,64.47870981,179.41,179.4,0.06]
[1755867084955,12.29939633,179.39,179.36,0.1]
[1755867085156,58.21939633,179.39,179.36,0.1]
[1755867085874,58.90939633,179.39,179.36,0.1]
[1755867086637,58.21939633,179.39,179.36,0.1]
[1755867087136,58.90939633,179.39,179.36,0.1]
[1755867087335,12.98939633,179.39,179.36,0.1]
[1755867087553,58.21939633,179.39,179.36,0.1]
[1755867088549,58.90939633,179.39,179.36,0.1]
[1755867088752,58.21939633,179.39,179.36,0.1]
[1755867089556,12.29939633,179.39,179.36,0.1]
[1755867089741,58.21939633,179.39,179.36,0.77]
[1755867090263,58.90939633,179.39,179.36,0.1]
[1755867090571,54.25948946,179.39,179.36,0.1]
[1755867090860,53.56948946,179.39,179.36,0.1]
[1755867091064,53.56948946,179.39,179.36,0.77]
[1755867091266,45.92,179.39,179.36,0.1]
[1755867091461,59.51559401,179.4,179.38,0.77]
[1755867091774,21.24508347,179.39,179.38,0.77]
[1755867091959,21.24508347,179.39,179.38,0.1]
[1755867092470,7.64948946,179.4,179.38,0.77]
[1755867093048,7.64948946,179.42,179.39,0.67]
[1755867093347,7.64948946,179.4,179.38,0.1]
[1755867093655,13.59559401,179.43,179.38,0.77]
[1755867093857,7.64948946,179.4,179.39,0.67]
[1755867094165,132.4,179.42,179.39,0.67]
[1755867094364,12.23036354,179.41,179.39,0.67]
[1755867094568,12.23036354,179.41,179.4,0.67]
[1755867095661,13.59559401,179.4,179.38,0.1]
[1755867095978,25.82595755,179.39,179.38,0.1]
[1755867096272,26.51595755,179.39,179.38,0.1]
[1755867096670,25.82595755,179.39,179.38,0.1]
[1755867096868,71.74595755,179.39,179.38,0.1]
[1755867097259,25.82595755,179.39,179.38,0.1]
[1755867097467,26.51595755,179.39,179.38,0.1]
[1755867097658,25.82595755,179.39,179.38,0.1]
[1755867098183,26.51595755,179.39,179.38,0.1]
[1755867098424,25.82595755,179.39,179.38,0.1]
[1755867099577,13.59559401,179.39,179.38,0.1]
[1755867099796,25.82595755,179.39,179.38,0.1]
[1755867100985,25.82595755,179.39,179.38,0.77]
[1755867101406,0.03,179.4,179.38,0.77]
[1755867101568,0.03,179.4,179.38,13.00036354]
[1755867101775,0.03,179.4,179.39,12.23036354]
[1755867101974,0.03,179.4,179.39,0.67]
[1755867102408,12.26036354,179.4,179.38,0.1]
[1755867102613,12.23036354,179.39,179.38,0.1]
[1755867102795,13.59559401,179.39,179.38,0.1]
[1755867102989,25.82595755,179.39,179.38,0.1]
[1755867103303,25.82595755,179.39,179.38,0.77]
[1755867104007,13.59559401,179.39,179.38,0.77]
[1755867104303,25.82595755,179.39,179.38,0.1]
[1755867104470,25.82595755,179.39,179.38,0.77]
[1755867105070,13.59559401,179.39,179.38,0.77]
[1755867105276,25.82595755,179.39,179.38,0.77]
[1755867106383,25.82595755,179.39,179.38,0.1]
[1755867107690,26.50595755,179.39,179.38,0.1]
[1755867108384,13.59559401,179.39,179.38,0.1]
[1755867108593,25.82595755,179.39,179.38,0.1]
[1755867108892,26.50595755,179.39,179.38,0.1]
[1755867111006,13.59559401,179.39,179.38,0.1]
[1755867111205,26.50595755,179.39,179.38,0.1]
[1755867111902,25.82595755,179.39,179.38,0.1]
[1755867112101,71.72595755,179.39,179.38,0.1]
[1755867112406,72.40595755,179.39,179.38,0.1]
[1755867112995,60.17559401,179.39,179.38,0.1]
[1755867113196,72.40595755,179.39,179.38,0.1]
[1755867113603,71.72595755,179.39,179.38,0.1]
[1755867114317,70.87887679,179.39,179.38,0.1]
[1755867114801,71.55887679,179.39,179.38,0.1]
[1755867115108,25.65887679,179.39,179.38,0.1]
[1755867115306,24.97887679,179.39,179.38,0.1]
[1755867115610,70.85887679,179.39,179.38,0.1]
[1755867115787,63.20981929,179.39,179.38,0.1]
[1755867115987,24.97887679,179.39,179.38,0.1]
[1755867116206,70.86021351,179.39,179.38,0.1]
[1755867117009,71.54021351,179.39,179.38,0.1]
[1755867117211,47.24465151,179.37,179.36,0.1]
[1755867117505,96.86021351,179.37,179.36,0.1]
[1755867117705,97.54021351,179.37,179.36,0.1]
[1755867118181,24.98021351,179.37,179.36,0.1]
[1755867118382,71.54021351,179.37,179.36,0.1]
[1755867118586,70.86021351,179.37,179.36,0.1]
[1755867121401,21.24465151,179.37,179.36,0.79]
[1755867121722,21.24465151,179.37,179.36,0.1]
[1755867122624,24.98733115,179.37,179.36,0.1]
[1755867123192,51.66733115,179.37,179.36,0.1]
[1755867123436,39.59559401,179.35,179.34,0.06]
[1755867123593,13.87991715,179.34,179.31,0.06]
[1755867123794,13.87991715,179.31,179.24,0.79]
[1755867124098,78.51638865,179.3,179.24,0.79]
[1755867124311,84.09363349,179.3,179.24,0.79]
[1755867124511,84.77363349,179.3,179.24,0.79]
[1755867124825,79.19638865,179.3,179.24,0.79]
[1755867125000,84.77363349,179.3,179.24,0.79]
[1755867125610,7.6490575,179.25,179.24,0.79]
[1755867125798,27.50189635,179.3,179.24,0.79]
[1755867125996,13.59559401,179.28,179.24,0.79]
[1755867126205,7.6490575,179.26,179.24,0.79]
[1755867126610,0.68,179.35,179.25,8.3390575]
[1755867126788,0.68,179.35,179.24,0.1]
[1755867126789,7.6490575,179.33,179.28,7.6490575]
[1755867126990,7.6490575,179.33,179.29,0.69]
[1755867127386,7.6490575,179.31,179.24,7.749058]
[1755867127593,7.6490575,179.3,179.25,8.3390575]
[1755867127897,7.6490575,179.29,179.26,0.69]
[1755867128093,3.7362378,179.32,179.26,0.69]
[1755867128522,7.6490575,179.29,179.26,0.69]
[1755867128724,3.7362378,179.32,179.26,0.69]
[1755867128725,59.45559401,179.33,179.26,0.69]
[1755867128916,7.6490575,179.29,179.26,0.69]
[1755867129429,7.6490575,179.29,179.27,0.69]
[1755867129590,7.6490575,179.29,179.24,7.7490575]
[1755867129818,7.6490575,179.29,179.28,0.69]
[1755867130144,45.86,179.32,179.28,0.69]
[1755867130647,7.6490575,179.29,179.28,0.69]
[1755867131163,7.6490575,179.29,179.26,0.69]
[1755867131315,7.6490575,179.29,179.27,0.69]
[1755867132016,140.0490575,179.28,179.24,0.79]
[1755867132217,132.4,179.27,179.25,0.69]
[1755867132416,132.4,179.27,179.24,7.7490575]
[1755867132650,132.4,179.27,179.26,0.69]
[1755867134023,132.4,179.27,179.24,0.79]
[1755867134223,132.4,179.27,179.25,0.69]
[1755867134431,132.4,179.27,179.24,7.7490575]
[1755867134632,26.68,179.34,179.24,7.7490575]
[1755867134633,132.4,179.33,179.26,8.3390575]
[1755867134839,132.4,179.33,179.27,0.69]
[1755867135165,132.4,179.33,179.29,7.6490575]
[1755867135450,7.6490575,179.32,179.3,0.69]
[1755867135638,140.0490575,179.33,179.3,0.69]
[1755867136027,132.4,179.33,179.31,0.69]
[1755867136628,132.4,179.33,179.29,8.3390575]
[1755867136824,132.4,179.33,179.3,0.69]
[1755867138242,132.4,179.33,179.29,7.6490575]
[1755867138535,132.4,179.33,179.29,0.7]
[1755867138740,140.0490575,179.33,179.29,0.7]
[1755867139555,132.4,179.33,179.29,8.3490575]
[1755867140168,132.4,179.33,179.3,8.3490575]
[1755867140527,132.4,179.33,179.3,0.7]
[1755867140864,132.4,179.33,179.31,0.7]
[1755867141072,132.4,179.33,179.32,8.3490575]
[1755867142159,21.94465151,179.38,179.32,8.3490575]
[1755867142160,14.29559401,179.38,179.32,8.3490575]
[1755867142344,21.94465151,179.38,179.32,8.3490575]
[1755867142538,14.29559401,179.38,179.32,8.3490575]
[1755867142767,132.4,179.39,179.35,7.6490575]
[1755867143054,132.4,179.39,179.35,8.3490575]
[1755867143359,7.6490575,179.37,179.32,8.3490575]
[1755867143662,8.3790575,179.37,179.32,8.3490575]
[1755867143846,0.03,179.37,179.33,8.3490575]
[1755867144044,0.03,179.37,179.33,7.6490575]
[1755867144243,0.03,179.37,179.34,8.3490575]
[1755867144445,7.6790575,179.37,179.33,7.6490575]
[1755867144847,0.03,179.37,179.33,7.6490575]
[1755867145172,8.3790575,179.37,179.32,0.7]
[1755867145342,8.3790575,179.37,179.33,7.6490575]
[1755867145544,8.3790575,179.37,179.31,7.649058]
[1755867145545,8.3490575,179.36,179.31,7.649058]
[1755867145747,8.3490575,179.35,179.31,7.649058]
[1755867145942,0.7,179.34,179.3,7.6490575]
[1755867146157,8.3490575,179.33,179.27,0.7]
[1755867146460,7.6490575,179.32,179.27,8.4090575]
[1755867146638,8.3490575,179.32,179.27,8.4090575]
[1755867146838,7.6490575,179.31,179.28,2.236573]
[1755867147055,13.59559401,179.33,179.27,0.06]
[1755867147269,13.59559401,179.33,179.28,0.7]
[1755867147439,21.24465151,179.33,179.29,0.7]
[1755867147948,21.24465151,179.33,179.32,120.0]
[1755867148138,0.03,179.37,179.32,127.6490575]
[1755867148342,0.7,179.36,179.32,120.0]
[1755867148636,0.7,179.35,179.32,120.0]
[1755867149036,7.6490575,179.36,179.32,120.7]
[1755867149440,7.6490575,179.36,179.32,120.0]
[1755867149667,8.3490575,179.36,179.32,120.0]
[1755867150566,0.7,179.36,179.32,120.0]
[1755867151065,7.6490575,179.34,179.32,120.0]
[1755867151246,21.94465151,179.33,179.32,120.0]
[1755867152189,25.69232418,179.33,179.32,120.0]
[1755867152674,24.99232418,179.33,179.32,120.0]
[1755867152880,13.59559401,179.33,179.32,120.0]
[1755867153055,21.24465151,179.33,179.32,120.0]
[1755867153558,21.94465151,179.33,179.32,120.0]
[1755867154374,25.68777556,179.33,179.32,120.0]
[1755867154584,18.03871806,179.33,179.32,120.0]
[1755867154938,25.68777556,179.33,179.32,120.0]
[1755867155158,17.33871806,179.33,179.32,120.0]
[1755867155364,13.59559401,179.33,179.32,120.7]
[1755867155562,13.59559401,179.33,179.32,120.0]
[1755867156073,21.24465151,179.33,179.32,120.0]
[1755867157266,21.94465151,179.33,179.32,120.0]
[1755867157950,13.59559401,179.33,179.32,120.0]
[1755867158146,21.94465151,179.33,179.32,120.0]
[1755867158353,25.69170085,179.33,179.32,120.0]
[1755867158566,24.99170085,179.33,179.32,120.0]
[1755867159473,17.34264335,179.33,179.32,120.0]
[1755867159875,13.59559401,179.33,179.32,120.0]
[1755867160087,21.24465151,179.33,179.32,120.0]
[1755867161269,13.59559401,179.33,179.32,120.0]
[1755867161475,21.94465151,179.33,179.32,120.0]
[1755867161651,25.69546888,179.33,179.32,120.0]
[1755867162586,3.75081737,179.33,179.32,120.0]
[1755867162758,7.6490575,179.34,179.32,120.0]
[1755867163073,3.75081737,179.34,179.32,120.0]
[1755867163259,0.03,179.35,179.32,120.0]
[1755867163479,7.6790575,179.35,179.32,120.7]
[1755867163969,21.24465151,179.34,179.32,120.0]
[1755867164275,7.6490575,179.33,179.32,120.0]
[1755867164645,21.24465151,179.34,179.32,120.0]
[1755867166771,21.94465151,179.33,179.32,120.0]
[1755867167077,14.29559401,179.33,179.32,120.0]
[1755867167248,25.69768368,179.33,179.32,120.0]
[1755867168579,17.34862618,179.33,179.32,120.0]
[1755867168769,24.99768368,179.33,179.32,120.0]
[1755867170589,25.02768368,179.33,179.32,120.0]
[1755867171472,17.37862618,179.33,179.32,120.0]
[1755867171675,11.43208967,179.33,179.32,120.0]
[1755867171878,7.6790575,179.33,179.32,120.0]
[1755867172186,25.71768368,179.33,179.32,120.0]
[1755867174963,31.57831864,179.33,179.32,120.0]
[1755867175158,25.02768368,179.33,179.32,120.0]
[1755867175362,70.76768368,179.33,179.32,120.0]
[1755867175671,71.45768368,179.33,179.32,120.0]
[1755867176078,77.31831864,179.33,179.32,120.0]
[1755867176672,71.74200682,179.33,179.32,120.0]
[1755867177196,77.31831864,179.33,179.32,120.0]
[1755867178369,69.66926114,179.33,179.32,120.0]
[1755867178564,77.29831864,179.33,179.32,120.0]
[1755867178762,17.66294932,179.33,179.32,120.0]
[1755867179006,63.38294932,179.33,179.32,120.0]
[1755867179167,71.03200682,179.33,179.32,120.0]
[1755867179787,63.38294932,179.33,179.32,120.0]
[1755867179968,71.72200682,179.33,179.32,120.0]
[1755867180368,71.03648809,179.33,179.32,120.0]
[1755867180569,63.38743059,179.33,179.32,120.0]
[1755867180772,70.75216495,179.33,179.32,120.0]
[1755867180967,63.10310745,179.33,179.32,120.0]
[1755867181161,3.78751344,179.33,179.32,120.66]
[1755867181365,0.03,179.33,179.32,120.0]
[1755867181597,21.27465151,179.33,179.32,120.0]
[1755867181786,25.03216495,179.33,179.32,120.0]
[1755867181994,17.38310745,179.33,179.32,120.66]
[1755867183391,17.38310745,179.33,179.32,120.0]
[1755867184109,12.12657094,179.33,179.32,120.0]
[1755867184899,12.41089408,179.33,179.32,120.0]
[1755867185113,71.70648809,179.33,179.32,120.0]
[1755867185710,77.28279991,179.33,179.32,120.0]
[1755867186585,81.97969171,179.33,179.32,120.0]
[1755867187685,77.28279991,179.33,179.32,120.0]
[1755867188081,31.58279991,179.33,179.32,120.0]
[1755867188284,77.28279991,179.33,179.32,110.56571605]
[1755867188583,84.93185741,179.33,179.32,22.40654618]
[1755867189098,21.52897465,179.28,179.27,0.06]
[1755867189299,70.98648809,179.28,179.27,0.06]
[1755867189597,71.67648809,179.28,179.27,0.06]
[1755867190017,77.25435511,179.28,179.27,0.06]
[1755867190198,47.52897465,179.26,179.25,0.06]
[1755867190396,96.98648809,179.26,179.25,0.06]
[1755867190591,97.67648809,179.26,179.25,0.06]
[1755867192322,103.25497743,179.26,179.25,0.06]
[1755867192509,57.55497743,179.26,179.25,0.06]
[1755867192828,103.23497743,179.26,179.25,0.06]
[1755867193120,51.28648809,179.26,179.25,0.06]
[1755867193326,93.20897465,179.26,179.25,0.06]
[1755867193539,92.92465151,179.26,179.25,0.72]
[1755867193716,93.06681308,179.26,179.25,0.06]
[1755867194028,93.20897465,179.26,179.25,0.06]
[1755867194198,85.55991715,179.26,179.25,0.06]
[1755867194398,93.20897465,179.26,179.25,0.06]
[1755867194813,47.52897465,179.26,179.25,0.06]
[1755867195023,93.20897465,179.26,179.25,0.06]
[1755867195595,98.78746399,179.26,179.25,0.06]
[1755867196336,53.10746399,179.26,179.25,0.06]
[1755867196502,103.2259598,179.26,179.25,0.06]
[1755867197314,98.78746399,179.26,179.25,0.06]
[1755867197619,99.50746399,179.26,179.25,0.06]
[1755867198628,103.25332032,179.26,179.25,0.06]
[1755867199999,96.95483098,179.26,179.25,0.06]
[1755867200410,96.95102941,179.26,179.25,0.06]
[1755867200611,51.27102941,179.26,179.25,0.06]
[1755867200927,66.90465151,179.26,179.25,0.75]
[1755867201397,92.90465151,179.26,179.25,0.06]
[1755867201605,93.18897465,179.26,179.25,0.06]
[1755867201821,39.59559401,179.26,179.25,0.75]
[1755867202010,13.59559401,179.26,179.25,0.75]
[1755867203019,21.24465151,179.26,179.25,0.75]
[1755867203536,13.59559401,179.26,179.25,0.75]
[1755867204428,47.52897465,179.26,179.25,0.06]
[1755867204607,93.18897465,179.26,179.25,0.06]
[1755867205362,13.59559401,179.26,179.25,0.75]
[1755867206228,21.24465151,179.26,179.25,0.06]
[1755867206548,21.52897465,179.26,179.25,0.06]
[1755867206731,22.24897465,179.26,179.25,0.06]
[1755867207041,27.82746399,179.26,179.25,0.06]
[1755867207930,67.16897465,179.26,179.25,0.06]
[1755867208623,73.46746399,179.26,179.25,0.06]
[1755867208824,21.52897465,179.26,179.25,0.06]
[1755867209036,59.51991715,179.26,179.25,0.06]
[1755867209241,67.16897465,179.26,179.25,0.06]
[1755867209455,103.21280225,179.26,179.25,0.06]
[1755867209819,77.21280225,179.26,179.25,0.06]
[1755867213155,31.57280225,179.26,179.25,0.06]
[1755867213345,77.19280225,179.26,179.25,0.06]
[1755867213560,171.77559401,179.23,179.22,0.1]
[1755867213752,93.14897465,179.23,179.22,0.1]
[1755867214756,39.59559401,179.23,179.22,0.79]
[1755867215047,21.24465151,179.23,179.22,0.79]
[1755867215224,13.59559401,179.23,179.22,0.79]
[1755867215426,21.24465151,179.23,179.22,0.79]
[1755867215732,13.59559401,179.23,179.22,0.79]
[1755867216142,13.59559401,179.25,179.22,0.79]
[1755867216526,21.24465151,179.25,179.22,0.79]
[1755867216726,7.6490575,179.24,179.22,0.79]
[1755867217049,13.59559401,179.24,179.23,0.69]
[1755867217223,21.24465151,179.24,179.23,0.69]
[1755867217626,45.63,179.27,179.23,0.69]
[1755867217929,13.59559401,179.25,179.23,0.69]
[1755867218438,7.6790575,179.27,179.23,0.69]
[1755867218753,21.24465151,179.26,179.24,0.69]
[1755867218932,21.24465151,179.26,179.22,0.1]
[1755867218933,7.6490575,179.25,179.22,0.79]
[1755867219128,0.03,179.27,179.23,0.69]
[1755867219129,21.24465151,179.24,179.23,0.69]
[1755867219331,21.24465151,179.24,179.22,0.1]
[1755867219546,7.6490575,179.23,179.22,0.1]
[1755867219734,21.24465151,179.23,179.22,0.1]
[1755867219931,13.59559401,179.23,179.22,0.79]
[1755867220135,21.24465151,179.23,179.22,0.79]
[1755867220345,132.4,179.24,179.22,0.79]
[1755867220544,140.0490575,179.24,179.22,0.79]
[1755867220748,7.6490575,179.23,179.22,0.1]
[1755867221265,132.4,179.24,179.22,0.79]
[1755867221469,7.6490575,179.23,179.22,0.79]
[1755867221633,21.24465151,179.23,179.22,0.1]
[1755867221832,21.24465151,179.23,179.22,0.79]
[1755867222338,13.59559401,179.23,179.22,0.79]
[1755867222646,140.0490575,179.24,179.22,0.79]
[1755867223172,13.59559401,179.23,179.22,0.1]
[1755867223340,21.24465151,179.23,179.22,0.1]
[1755867223736,140.0490575,179.24,179.22,0.79]
[1755867224153,7.6490575,179.23,179.22,0.1]
[1755867224874,7.6490575,179.23,179.22,0.79]
[1755867225170,140.0490575,179.24,179.22,0.79]
[1755867225345,140.0490575,179.23,179.22,0.79]
[1755867225669,132.4,179.23,179.22,0.79]
[1755867225878,132.4,179.23,179.22,8.4390575]
[1755867226539,132.4,179.23,179.22,0.79]
[1755867226743,132.4,179.23,179.22,8.4390575]
[1755867227252,132.4,179.23,179.22,0.79]
[1755867227459,132.4,179.23,179.22,8.4390575]
[1755867227660,132.4,179.23,179.22,0.79]
[1755867227867,132.4,179.23,179.22,8.4390575]
[1755867228383,0.03,179.27,179.22,14.01870778]
[1755867228674,0.03,179.27,179.25,26.0]
[1755867228843,0.03,179.27,179.26,7.6490575]
[1755867229165,0.03,179.27,179.26,8.3690575]
[1755867229338,0.03,179.27,179.26,10.6056305]
[1755867229865,0.03,179.27,179.26,10.88995364]
[1755867231440,0.03,179.27,179.26,16.46844298]